fUST/lending_fUST_20260118
["ID","MTS","AMOUNT","RATE_DAILY","PERIOD"]
[402466070,1768681863392,-500.0,0.00016986,3]
[402466072,1768681863401,-617.76833614,0.00016986,3]
[402466074,1768681863409,-500.0,0.00016986,3]
[402466076,1768681863420,-500.0,0.00016986,3]
[402466078,1768681863429,-500.0,0.00016986,3]
[402466080,1768681863438,-500.0,0.00016986,3]
[402466082,1768681863448,-500.0,0.00016986,3]
[402466084,1768681863457,-659.96,0.00016986,3]
[402466086,1768681863466,-500.0,0.00016986,3]
[402466088,1768681863475,-500.0,0.00016986,3]
[402466090,1768681863485,-645.57,0.00016986,3]
[402466092,1768681863494,-500.0,0.00016986,3]
[402466094,1768681863500,-1165.92,0.00016986,3]
[402466096,1768681863510,-500.0,0.00016986,3]
[402466098,1768681863518,-770.55,0.00016986,3]
[402466100,1768681863527,-500.0,0.00016986,3]
[402466102,1768681863536,-609.79,0.00016986,3]
[402466104,1768681863543,-500.0,0.00016986,3]
[402466106,1768681863552,-321.643845,0.00016986,7]
[402466108,1768681863562,-500.0,0.00016986,3]
[402466110,1768681863572,-500.0,0.00016986,3]
[402466112,1768681863581,-500.0,0.00016986,3]
[402466114,1768681863590,-500.0,0.00016986,3]
[402466116,1768681863600,-1277.68,0.00016986,3]
[402466118,1768681863609,-500.0,0.00016986,3]
[402466119,1768681863619,-907.15,0.00016986,3]
[402466122,1768681863628,-1440.8,0.00016986,3]
[402466123,1768681863638,-1337.94,0.00016986,3]
[402466126,1768681863647,-617.55085621,0.00016986,3]
[402466128,1768681863657,-500.0,0.00016986,3]
[402466130,1768681863666,-500.0,0.00016986,3]
[402466131,1768681863675,-500.0,0.00016986,3]
[402466134,1768681863685,-500.0,0.00016986,3]
[402466136,1768681863695,-500.0,0.00016986,3]
[402466138,1768681863704,-646.24,0.00016986,3]
[402466140,1768681863714,-500.0,0.00016986,3]
[402466142,1768681863724,-500.0,0.00016986,3]
[402466144,1768681863734,-672.15,0.00016986,3]
[402466146,1768681863744,-704.26,0.00016986,3]
[402466148,1768681863753,-500.0,0.00016986,3]
[402466150,1768681863763,-1213.37,0.00016986,3]
[402466152,1768681863773,-500.0,0.00016986,3]
[402466154,1768681863783,-500.0,0.00016986,3]
[402466156,1768681863792,-500.0,0.00016986,3]
[402466158,1768681863802,-962.51,0.00016986,3]
[402466160,1768681863811,-372.96596375,0.00016986,3]
[402466162,1768681863821,-500.0,0.00016986,3]
[402466164,1768681863830,-500.0,0.00016986,3]
[402466166,1768681863839,-656.88,0.00016986,3]
[402466168,1768681863848,-500.0,0.00016986,3]
[402466170,1768681863858,-500.0,0.00016986,3]
[402466172,1768681863867,-500.0,0.00016986,3]
[402466174,1768681863876,-500.0,0.00016986,3]
[402466175,1768681863885,-500.0,0.00016986,3]
[402466177,1768681863895,-500.0,0.00016986,3]
[402466179,1768681863904,-500.0,0.00016986,3]
[402466181,1768681863913,-614.98,0.00016986,3]
[402466183,1768681863922,-500.0,0.00016986,3]
[402466185,1768681863931,-500.0,0.00016986,3]
[402466187,1768681863940,-206.61780172,0.00016986,3]
[402466189,1768681863949,-500.0,0.00016986,3]
[402466191,1768681863959,-616.17,0.00016986,3]
[402466193,1768681863968,-694.74,0.00016986,3]
[402466195,1768681863977,-500.0,0.00016986,3]
[402466197,1768681863986,-500.0,0.00016986,3]
[402466199,1768681863996,-500.0,0.00016986,3]
[402466200,1768681864006,-500.0,0.00016986,3]
[402466202,1768681864015,-755.61,0.00016986,3]
[402466203,1768681864025,-500.0,0.00016986,3]
[402466205,1768681864034,-1378.03,0.00016986,3]
[402466207,1768681864044,-879.74,0.00016986,3]
[402466208,1768681864053,-500.0,0.00016986,3]
[402466210,1768681864062,-500.0,0.00016986,3]
[402466212,1768681864071,-509.49842469,0.00016986,3]
[402466213,1768681864081,-595.76,0.00016986,3]
[402466215,1768681864091,-510.46768292,0.00016986,3]
[402466217,1768681864100,-263.30228,0.00016986,2]
[402466218,1768681864109,-263.30228,0.00016986,2]
[402466220,1768681864118,-263.30228,0.00016986,2]
[402466222,1768681864128,-543.38,0.00016986,3]
[402466223,1768681864138,-500.0,0.00016986,3]
[402466225,1768681864148,-500.0,0.00016986,3]
[402466227,1768681864158,-500.0,0.00016986,3]
[402466229,1768681864167,-500.0,0.00016986,3]
[402466231,1768681864177,-500.0,0.00016986,3]
[402466232,1768681864186,-500.0,0.00016986,3]
[402466234,1768681864196,-263.30228,0.00016986,2]
[402466236,1768681864206,-500.0,0.00016986,3]
[402466237,1768681864215,-508.14,0.00016986,3]
[402466239,1768681864225,-500.0,0.00016986,3]
[402466241,1768681864235,-500.0,0.00016986,3]
[402466243,1768681864245,-500.0,0.00016986,3]
[402466244,1768681864254,-500.0,0.00016986,3]
[402466246,1768681864261,-500.0,0.00016986,3]
[402466247,1768681864270,-500.0,0.00016986,3]
[402466249,1768681864280,-500.0,0.00016986,3]
[402466255,1768681864346,-500.0,0.00016986,3]
[402466257,1768681864356,-500.0,0.00016986,3]
[402466258,1768681864365,-500.0,0.00016986,3]
[402466260,1768681864375,-500.0,0.00016986,3]
[402466262,1768681864384,-500.0,0.00016986,3]
[402466264,1768681864393,-809.41,0.00016986,3]
[402466265,1768681864403,-500.0,0.00016986,3]
[402466267,1768681864414,-500.0,0.00016986,3]
[402466269,1768681864423,-500.0,0.00016986,3]
[402466270,1768681864433,-555.48,0.00016986,3]
[402466272,1768681864443,-500.0,0.00016986,3]
[402466274,1768681864453,-500.0,0.00016986,3]
[402466276,1768681864463,-500.0,0.00016986,3]
[402466278,1768681864473,-1077.54,0.00016986,3]
[402466279,1768681864482,-500.0,0.00016986,3]
[402466281,1768681864491,-1380.33,0.00016986,3]
[402466283,1768681864505,-1301.79,0.00016986,3]
[402466285,1768681864515,-500.0,0.00016986,3]
[402466287,1768681864525,-1358.52,0.00016986,3]
[402466289,1768681864534,-1128.02,0.00016986,3]
[402466290,1768681864544,-825.7,0.00016986,3]
[402466292,1768681864554,-1443.33,0.00016986,3]
[402466294,1768681864564,-500.0,0.00016986,3]
[402466296,1768681864574,-500.0,0.00016986,3]
[402466298,1768681864584,-500.0,0.00016986,3]
[402466300,1768681864594,-500.0,0.00016986,3]
[402466302,1768681864603,-500.0,0.00016986,3]
[402466303,1768681864611,-510.09347373,0.00016986,3]
[402466305,1768681864621,-500.0,0.00016986,3]
[402466307,1768681864630,-804.74,0.00016986,3]
[402466309,1768681864641,-500.0,0.00016986,3]
[402466310,1768681864651,-12044.46,0.00016986,3]
[402466312,1768681864661,-500.0,0.00016986,3]
[402466313,1768681864670,-725.5,0.00016986,3]
[402466315,1768681864680,-500.0,0.00016986,3]
[402466317,1768681864690,-586.69345544,0.00016986,3]
[402466319,1768681864700,-632.68,0.00016986,3]
[402466321,1768681864710,-500.0,0.00016986,3]
[402466323,1768681864719,-500.0,0.00016986,3]
[402466324,1768681864728,-500.0,0.00016986,3]
[402466326,1768681864738,-500.0,0.00016986,3]
[402466328,1768681864747,-500.0,0.00016986,3]
[402466330,1768681864757,-500.0,0.00016986,3]
[402466332,1768681864766,-726.59,0.00016986,3]
[402466333,1768681864775,-500.0,0.00016986,3]
[402466335,1768681864785,-500.0,0.00016986,3]
[402466337,1768681864795,-835.03,0.00016986,3]
[402466339,1768681864804,-511.95572068,0.00016986,3]
[402466340,1768681864814,-500.0,0.00016986,3]
[402466342,1768681864823,-818.9,0.00016986,3]
[402466344,1768681864833,-500.0,0.00016986,3]
[402466346,1768681864843,-151.0,0.00016986,2]
[402466348,1768681864852,-500.0,0.00016986,3]
[402466349,1768681864861,-702.73,0.00016986,3]
[402466351,1768681864871,-500.0,0.00016986,3]
[402466353,1768681864880,-728.08,0.00016986,3]
[402466355,1768681864890,-1146.04,0.00016986,3]
[402466357,1768681864900,-1113.15,0.00016986,3]
[402466358,1768681864910,-500.0,0.00016986,3]
[402466360,1768681864919,-1200.0,0.00016986,2]
[402466362,1768681864929,-500.0,0.00016986,3]
[402466364,1768681864939,-500.0,0.00016986,3]
[402466366,1768681864948,-500.0,0.00016986,3]
[402466367,1768681864957,-500.0,0.00016986,3]
[402466369,1768681864966,-1551.42,0.00016986,3]
[402466371,1768681864976,-500.0,0.00016986,3]
[402466373,1768681864989,-500.0,0.00016986,3]
[402466375,1768681864999,-500.0,0.00016986,3]
[402466377,1768681865013,-500.0,0.00016986,3]
[402466379,1768681865022,-500.0,0.00016986,3]
[402466381,1768681865031,-500.0,0.00016986,3]
[402466383,1768681865040,-500.0,0.00016986,2]
[402466384,1768681865050,-1425.71,0.00016986,3]
[402466386,1768681865060,-500.0,0.00016986,3]
[402466388,1768681865069,-500.0,0.00016986,3]
[402466390,1768681865079,-1391.6,0.00016986,3]
[402466392,1768681865089,-500.0,0.00016986,3]
[402466394,1768681865099,-500.0,0.00016986,3]
[402466395,1768681865108,-506.28,0.00016986,3]
[402466397,1768681865117,-500.0,0.00016986,3]
[402466399,1768681865126,-932.84,0.00016986,3]
[402466401,1768681865136,-672.94,0.00016986,3]
[402466403,1768681865145,-500.0,0.00016986,3]
[402466405,1768681865154,-500.0,0.00016986,3]
[402466406,1768681865163,-500.0,0.00016986,3]
[402466408,1768681865173,-500.0,0.00016986,3]
[402466410,1768681865182,-500.0,0.00016986,3]
[402466412,1768681865192,-531.51,0.00016986,3]
[402466413,1768681865201,-500.0,0.00016986,3]
[402466415,1768681865211,-500.0,0.00016986,3]
[402466417,1768681865221,-500.0,0.00016986,3]
[402466419,1768681865230,-500.0,0.00016986,3]
[402466421,1768681865239,-500.0,0.00016986,3]
[402466423,1768681865248,-500.0,0.00016986,3]
[402466424,1768681865258,-500.0,0.00016986,3]
[402466426,1768681865267,-1219.79,0.00016986,3]
[402466428,1768681865276,-500.0,0.00016986,3]
[402466430,1768681865286,-675.39,0.00016986,3]
[402466432,1768681865295,-890.03,0.00016986,3]
[402466433,1768681865304,-500.0,0.00016986,3]
[402466435,1768681865314,-500.0,0.00016986,3]
[402466437,1768681865323,-1633.97,0.00016986,3]
[402466439,1768681865332,-906.67,0.00016986,3]
[402466441,1768681865342,-500.0,0.00016986,3]
[402466443,1768681865357,-582.1,0.00016986,3]
[402466445,1768681865367,-151.0,0.00016986,2]
[402466446,1768681865376,-500.0,0.00016986,3]
[402466448,1768681865386,-2076.46,0.00016986,3]
[402466450,1768681865398,-151.0,0.00016986,2]
[402466452,1768681865407,-500.0,0.00016986,3]
[402466454,1768681865417,-486.76739107,0.00016986,3]
[402466456,1768681865427,-576.72,0.00016986,3]
[402466458,1768681865437,-693.13,0.00016986,3]
[402466459,1768681865446,-500.0,0.00016986,3]
[402466461,1768681865457,-500.0,0.00016986,3]
[402466463,1768681865467,-500.0,0.00016986,3]
[402466465,1768681865476,-500.0,0.00016986,3]
[402466467,1768681865486,-500.0,0.00016986,3]
[402466468,1768681865495,-500.0,0.00016986,3]
[402466470,1768681865504,-1009.69,0.00016986,3]
[402466472,1768681865514,-500.0,0.00016986,3]
[402466474,1768681865523,-500.0,0.00016986,3]
[402466476,1768681865533,-596.38925241,0.00016986,3]
[402466478,1768681865542,-500.0,0.00016986,3]
[402466479,1768681865551,-500.0,0.00016986,3]
[402466481,1768681865561,-500.0,0.00016986,3]
[402466483,1768681865570,-596.26,0.00016986,3]
[402466485,1768681865579,-500.0,0.00016986,3]
[402466486,1768681865589,-1233.71,0.00016986,3]
[402466488,1768681865598,-1191.65,0.00016986,3]
[402466490,1768681865608,-500.0,0.00016986,3]
[402466492,1768681865617,-1000.0,0.00016986,2]
[402466494,1768681865627,-500.0,0.00016986,3]
[402466496,1768681865638,-834.54,0.00016986,3]
[402466498,1768681865648,-500.0,0.00016986,3]
[402466499,1768681865657,-500.0,0.00016986,3]
[402466501,1768681865667,-1069.23,0.00016986,3]
[402466503,1768681865677,-500.0,0.00016986,3]
[402466505,1768681865686,-500.0,0.00016986,3]
[402466507,1768681865695,-500.0,0.00016986,3]
[402466508,1768681865705,-600.21,0.00016986,3]
[402466510,1768681865715,-500.0,0.00016986,3]
[402466512,1768681865725,-500.0,0.00016986,3]
[402466514,1768681865735,-500.0,0.00016986,3]
[402466516,1768681865745,-500.0,0.00016986,3]
[402466517,1768681865754,-500.0,0.00016986,3]
[402466519,1768681865763,-701.17,0.00016986,3]
[402466521,1768681865773,-500.0,0.00016986,3]
[402466523,1768681865783,-500.0,0.00016986,3]
[402466525,1768681865792,-500.0,0.00016986,3]
[402466526,1768681865801,-500.0,0.00016986,3]
[402466528,1768681865811,-1264.47,0.00016986,3]
[402466530,1768681865820,-500.0,0.00016986,3]
[402466532,1768681865830,-1656.75,0.00016986,3]
[402466534,1768681865839,-645.0,0.00016986,3]
[402466536,1768681865848,-500.0,0.00016986,3]
[402466537,1768681865857,-1002.99,0.00016986,3]
[402466539,1768681865868,-500.0,0.00016986,3]
[402466541,1768681865877,-2176.82,0.00016986,3]
[402466543,1768681865886,-500.0,0.00016986,3]
[402466545,1768681865895,-500.0,0.00016986,3]
[402466546,1768681865905,-500.0,0.00016986,3]
[402466548,1768681865914,-531.28,0.00016986,3]
[402466550,1768681865924,-500.0,0.00016986,3]
[402466552,1768681865935,-500.0,0.00016986,3]
[402466554,1768681865944,-605.0,0.00016986,3]
[402466556,1768681865955,-500.0,0.00016986,3]
[402466558,1768681865964,-500.0,0.00016986,3]
[402466559,1768681865973,-1395.51,0.00016986,3]
[402466561,1768681865983,-500.0,0.00016986,3]
[402466563,1768681865992,-801.52,0.00016986,3]
[402466565,1768681866003,-1281.78,0.00016986,3]
[402466567,1768681866012,-1113.91,0.00016986,3]
[402466569,1768681866030,-500.0,0.00016986,3]
[402466571,1768681866042,-500.0,0.00016986,3]
[402466573,1768681866052,-500.0,0.00016986,3]
[402466575,1768681866063,-500.0,0.00016986,3]
[402466577,1768681866073,-766.79,0.00016986,3]
[402466579,1768681866083,-500.0,0.00016986,3]
[402466581,1768681866092,-500.0,0.00016986,3]
[402466583,1768681866102,-500.0,0.00016986,3]
[402466584,1768681866112,-926.04,0.00016986,3]
[402466586,1768681866123,-500.0,0.00016986,3]
[402466588,1768681866133,-2880.81,0.00016986,3]
[402466590,1768681866143,-500.0,0.00016986,3]
[402466592,1768681866153,-500.0,0.00016986,3]
[402466594,1768681866163,-500.0,0.00016986,3]
[402466596,1768681866173,-532.59,0.00016986,3]
[402466597,1768681866183,-1061.24,0.00016986,3]
[402466599,1768681866193,-642.42,0.00016986,3]
[402466601,1768681866203,-500.0,0.00016986,3]
[402466603,1768681866213,-500.0,0.00016986,3]
[402466605,1768681866223,-533.25,0.00016986,3]
[402466607,1768681866232,-500.0,0.00016986,3]
[402466609,1768681866243,-597.25,0.00016986,3]
[402466610,1768681866254,-500.0,0.00016986,3]
[402466612,1768681866264,-500.0,0.00016986,3]
[402466614,1768681866274,-500.0,0.00016986,3]
[402466616,1768681866283,-500.0,0.00016986,3]
[402466618,1768681866292,-512.95426722,0.00016986,3]
[402466619,1768681866301,-505.83,0.00016986,3]
[402466621,1768681866310,-500.0,0.00016986,3]
[402466623,1768681866320,-538.58,0.00016986,3]
[402466625,1768681866330,-500.0,0.00016986,3]
[402466627,1768681866339,-1116.75,0.00016986,3]
[402466629,1768681866354,-500.0,0.00016986,3]
[402466630,1768681866365,-500.0,0.00016986,3]
[402466632,1768681866375,-775.8,0.00016986,3]
[402466634,1768681866385,-500.0,0.00016986,3]
[402466636,1768681866394,-6357.57,0.00016986,3]
[402466638,1768681866404,-694.52,0.00016986,3]
[402466640,1768681866414,-936.78,0.00016986,3]
[402466641,1768681866424,-500.0,0.00016986,3]
[402466643,1768681866434,-500.0,0.00016986,3]
[402466645,1768681866445,-500.0,0.00016986,3]
[402466647,1768681866454,-500.0,0.00016986,3]
[402466649,1768681866464,-500.0,0.00016986,3]
[402466651,1768681866474,-872.79,0.00016986,3]
[402466652,1768681866483,-500.0,0.00016986,3]
[402466654,1768681866494,-114.57103316,0.00016986,3]
[402466758,1768681867777,-3e-08,0.00016338,2]
[402466759,1768681868083,-286.46243099,0.00012281,2]
[402466760,1768681868094,-200.0,0.00012555,2]
[402466761,1768681868104,-73.53756901,0.00016338,2]
[402466762,1768681868116,-1275.26802004,0.00016338,2]
[402466763,1768681868130,-500.0,0.00016438,3]
[402466764,1768681868140,-500.0,0.00016438,3]
[402466765,1768681868149,-500.0,0.00016438,3]
[402466766,1768681868159,-500.0,0.00016438,3]
[402466767,1768681868169,-271.35699502,0.00016438,3]
[402466785,1768681868712,-500.0,0.00012281,2]
[402466788,1768681868723,-500.0,0.00012418,2]
[402466789,1768681868734,-250.0,0.00012555,2]
[402466792,1768681868744,-200.98592784,0.00012829,2]
[402466794,1768681868754,-228.64300498,0.00016438,3]
[402466796,1768681868765,-500.0,0.00016438,3]
[402466798,1768681868775,-500.0,0.00016438,3]
[402466800,1768681868784,-500.0,0.00016712,3]
[402466802,1768681868794,-618.02,0.00016712,3]
[402466804,1768681868805,-474.79408976,0.00016712,3]
[402466806,1768681868816,-500.0,0.00016712,3]
[402466808,1768681868827,-500.0,0.00016712,3]
[402466810,1768681868837,-500.0,0.00016712,3]
[402466812,1768681868848,-500.0,0.00016712,3]
[402466814,1768681868858,-385.42896684,0.00016986,3]
[402466816,1768681868869,-746.14,0.00016986,3]
[402466818,1768681868879,-500.0,0.00016986,3]
[402466820,1768681868889,-500.0,0.00016986,3]
[402466822,1768681868900,-500.0,0.00016986,3]
[402466824,1768681868910,-1846.68,0.00016986,3]
[402466826,1768681868920,-688.55,0.00016986,3]
[402466828,1768681868931,-500.0,0.00016986,3]
[402466830,1768681868941,-500.0,0.00016986,3]
[402466833,1768681868952,-1265.32,0.00016986,3]
[402466835,1768681868963,-500.0,0.00016986,3]
[402466837,1768681868973,-500.0,0.00016986,3]
[402466839,1768681868985,-500.0,0.00016986,3]
[402466841,1768681868996,-500.0,0.00016986,3]
[402466843,1768681869007,-1387.64,0.00016986,3]
[402466845,1768681869016,-664.91,0.00016986,3]
[402466847,1768681869027,-784.96,0.00016986,3]
[402466849,1768681869037,-1084.91,0.00016986,3]
[402466851,1768681869048,-1435.11,0.00016986,3]
[402466853,1768681869058,-500.0,0.00016986,3]
[402466855,1768681869070,-397.45467725,0.00016986,3]
[402467929,1768681881448,169.1055781,0.00022152,120]
[402471683,1768681970583,-5000.0,0.00012158,2]
[402471684,1768681985646,-5000.0,0.00012799,2]
[402471686,1768682002804,0.01,0.00012799,2]
[402471687,1768682002827,4999.99,0.00012799,2]
[402471688,1768682023130,499.99999999,0.00012329,2]
[402471689,1768682023172,186.47189128,0.0001213,2]
[402471690,1768682023202,639.47247228,0.0001213,2]
[402471691,1768682025094,5000.0,0.00012838,2]
[402471692,1768682047456,3674.06563645,0.00012838,2]
[402471693,1768682047490,1325.93436355,0.00012838,2]
[402471694,1768682070455,5000.0,0.00012838,2]
[402471695,1768682092711,3674.07563645,0.00012838,2]
[402471696,1768682092734,1325.92436355,0.00012838,2]
[402471697,1768682109057,166.0,0.00021465,120]
[402471698,1768682110408,166.0,0.00022539,120]
[402471699,1768682111837,166.0,0.00023665,120]
[402471700,1768682113072,166.0,0.00024849,120]
[402471701,1768682114353,166.0,0.00026091,120]
[402471702,1768682115631,166.0,0.00027396,120]
[402471703,1768682115665,5000.0,0.00012838,2]
[402471704,1768682139926,3674.08563645,0.00012838,2]
[402471705,1768682139949,1325.91436355,0.00012838,2]
[402471706,1768682162620,5000.0,0.00012838,2]
[402471707,1768682184441,2358.87913365,0.00012838,2]
[402471736,1768683031657,-169.44672996,0.000131,2]
[402471737,1768683031667,-500.0,0.00013273,2]
[402471738,1768683031676,-602.79549151,0.00013643,2]
[402471739,1768683031685,-300.0,0.00013673,2]
[402471740,1768683031693,-500.0,0.00013699,2]
[402471741,1768683031702,-260.20000005,0.00013699,2]
[402471742,1768683031710,-161.99130029,0.0001414,2]
[402471743,1768683031719,-248.3708511,0.00014247,2]
[402471744,1768683031729,-161.9913003,0.00015029,2]
[402471745,1768683031738,-407.89,0.00015082,2]
[402471746,1768683031746,-199.94714135,0.000151,2]
[402471747,1768683031755,-2047.32525194,0.00015388,2]
[402471748,1768683031764,-2150.738,0.00015388,2]
[402471749,1768683031772,-250.0,0.00015389,2]
[402471750,1768683032006,-250.0,0.00015389,2]
[402471751,1768683032019,-302.86950393,0.00015389,2]
[402471752,1768683032027,-445.202766,0.00015389,2]
[402471753,1768683032033,-151.0,0.00015389,2]
[402471754,1768683032040,-2000.0,0.00015389,2]
[402471755,1768683032047,-1222.19113968,0.00015389,2]
[402471756,1768683032055,-500.0,0.00015389,2]
[402471757,1768683032068,-191.51219832,0.00015389,2]
[402471758,1768683032078,-162.380719,0.00015389,2]
[402471759,1768683032087,-168.3888056,0.00015389,2]
[402471760,1768683032096,-174.61919141,0.00015389,2]
[402471761,1768683032106,-181.08010149,0.00015389,2]
[402471762,1768683032118,-187.78006525,0.00015389,2]
[402471763,1768683032128,-194.72792766,0.00015389,2]
[402471764,1768683032137,-201.93286099,0.00015389,2]
[402471765,1768683032146,-209.40437684,0.00015389,2]
[402471766,1768683032156,-217.15233878,0.00015389,2]
[402471767,1768683032166,-225.18697532,0.00015389,2]
[402471768,1768683032175,-233.51889341,0.00015389,2]
[402471769,1768683032184,-242.15909246,0.00015389,2]
[402471770,1768683032194,-251.11897888,0.00015389,2]
[402471771,1768683032204,-260.4103811,0.00015389,2]
[402471772,1768683032214,-480.0,0.00015395,2]
[402471773,1768683032223,-447.83937243,0.00015396,2]
[402471774,1768683032233,-500.0,0.00015396,2]
[402471775,1768683032242,-172.79344595,0.00015396,2]
[402471776,1768683032251,-300.0,0.00015396,2]
[402471777,1768683032260,-300.0,0.00015396,2]
[402471778,1768683032269,-50000.0,0.00015397,2]
[402471779,1768683032279,-503.0,0.000154,2]
[402471780,1768683032288,-3547.9699895,0.0001545,2]
[402471781,1768683032298,-20908.2327722,0.0001545,2]
[402471782,1768683032307,-155.9069671,0.00015578,2]
[402471783,1768683032317,-503.0,0.00015596,2]
[402471784,1768683032326,-372.06979238,0.00015633,2]
[402471785,1768683032336,-431.41233017,0.00015633,2]
[402471786,1768683032345,-1041.66666667,0.00015635,2]
[402471787,1768683032354,-160.0,0.00015635,2]
[402471788,1768683032363,-500.0,0.00015655,2]
[402471789,1768683032372,-500.0,0.00015655,2]
[402471790,1768683032381,-250.0,0.00015655,2]
[402471791,1768683032391,-500.0,0.00015655,2]
[402471793,1768683032400,-500.0,0.00015655,2]
[402471794,1768683032412,-500.0,0.00015655,2]
[402471795,1768683032421,-213.14839871,0.00015655,2]
[402471796,1768683032430,-602.19565449,0.00015792,2]
[402471797,1768683032440,-500.0,0.00015792,2]
[402471798,1768683032449,-500.0,0.00015792,2]
[402471799,1768683032458,-500.0,0.00015792,2]
[402471800,1768683032468,-500.0,0.00015792,2]
[402471801,1768683032477,-500.0,0.00015792,2]
[402471802,1768683032486,-503.0,0.00015797,2]
[402471803,1768683032496,-503.0,0.00015857,2]
[402471804,1768683032505,-1194.0,0.00015858,2]
[402471805,1768683032515,-1194.0,0.00015908,2]
[402471806,1768683032524,-303.45172214,0.00015929,2]
[402471808,1768683032533,-500.0,0.00015929,2]
[402471809,1768683032543,-500.0,0.00015929,2]
[402471810,1768683032553,-299.01407216,0.00015929,2]
[402471812,1768683032562,-200.0,0.00015929,2]
[402471814,1768683032571,-2230.315306,0.00015936,2]
[402471816,1768683032580,-461.67526834,0.00015937,2]
[402471818,1768683032589,-1194.0,0.00015939,2]
[402471820,1768683032599,-503.0,0.00015956,2]
[402471822,1768683032608,-1194.0,0.00015957,2]
[402471824,1768683032617,-5000.0,0.00015989,2]
[402471826,1768683032626,-100000.0,0.0001599,2]
[402471828,1768683032636,-450.0,0.00016066,2]
[402471830,1768683032645,-600.0,0.00016066,2]
[402471832,1768683032653,-500.0,0.00016164,3]
[402471834,1768683032663,-200.0,0.00016203,2]
[402471835,1768683032671,-377.1283076,0.00016223,2]
[402471837,1768683032681,-444.0839763,0.0001624,2]
[402471839,1768683032691,-444.08397626,0.00016265,2]
[402471841,1768683032700,-444.08397626,0.00016289,2]
[402471842,1768683032709,-500.0,0.00016301,3]
[402471843,1768683032718,-444.08397626,0.00016314,2]
[402471844,1768683032728,-444.08397626,0.00016338,2]
[402471845,1768683032737,-369537.92346429,0.00016338,2]
[402471846,1768683032751,-373.11910904,0.00016338,2]
[402471866,1768683037820,-270.0455652,0.00015389,2]
[402471867,1768683037831,-280.03725112,0.00015389,2]
[402471868,1768683037842,-290.39862941,0.00015389,2]
[402471870,1768683037852,-301.1433787,0.00015389,2]
[402471873,1768683037862,-62549.36184159,0.00016338,2]
[402472102,1768683040018,-3570.18917919,0.00016338,2]
[402472104,1768683040030,-478.96581012,0.00016338,2]
[402472106,1768683040042,-574.75499537,0.00016338,2]
[402472337,1768683042853,-454.355,0.00016338,2]
[402472338,1768683042865,-760.24,0.00016338,2]
[402472339,1768683042877,-1959.44253199,0.00016338,2]
[402472481,1768683045809,-1700.0,0.00016338,2]
[402472488,1768683045866,-1457.0,0.00016338,2]
[402472523,1768683046194,-1047.07468735,0.00016338,2]
[402479181,1768683224917,-4188.41309119,0.00015204,2]
[402479182,1768683224950,-165.24711082,0.0001525,2]
[402479183,1768683224979,-300.0,0.00015296,2]
[402479195,1768684025356,154.04,0.00010358,2]
[402479196,1768684025760,184.85,0.00010772,2]
[402479197,1768684026165,215.66,0.00011187,2]